bitfinex/quotes_SOLUSD_20230903
["timestamp","ask_amount","ask_price","bid_price","bid_amount"]
[1693737342962,4.44461036,19.435,19.421,0.5]
[1693737343148,4.44461036,19.436,19.421,0.5]
[1693737343350,59.44461036,19.436,19.421,0.5]
[1693737343653,4.44461036,19.436,19.421,0.5]
[1693737343854,59.44461036,19.436,19.421,0.5]
[1693737374585,67.97376341,19.435,19.421,0.5]
[1693737374882,8.028,19.431,19.418,0.5]
[1693737375083,4.44461036,19.43,19.417,0.5]
[1693737375281,12.47261036,19.43,19.417,0.5]
[1693737375579,4.44461036,19.43,19.417,0.5]
[1693737375779,90.1829,19.429,19.417,0.5]
[1693737375982,4.44461036,19.428,19.417,0.5]
[1693737376579,4.44461036,19.428,19.417,55.5]
[1693737377379,4.44461036,19.431,19.417,55.5]
[1693737377580,59.44461036,19.431,19.417,55.5]
[1693737381178,4.44461036,19.431,19.417,55.5]
[1693737432035,4.44461036,19.431,19.417,0.5]
[1693737432541,4.44461036,19.431,19.417,55.5]
[1693737446428,4.44461036,19.434,19.417,55.5]
[1693737457955,24.44461036,19.436,19.417,55.5]
[1693737458153,4.44461036,19.436,19.417,55.5]
[1693737458353,4.44461036,19.437,19.417,55.5]
[1693737458947,84.59442836,19.437,19.419,0.5]
[1693737459151,4.44461036,19.435,19.419,55.5]
[1693737470845,4.44461036,19.435,19.419,70.56488156]
[1693737471660,4.44461036,19.435,19.419,112.7852729]
[1693737502286,12.47061036,19.435,19.419,112.7852729]
[1693737508185,4.44461036,19.435,19.419,112.7852729]
[1693737514099,4.44461036,19.435,19.419,57.7852729]
[1693737514401,59.44461036,19.435,19.419,57.7852729]
[1693737515488,59.44461036,19.435,19.42,55.0]
[1693737515697,59.44461036,19.435,19.421,0.5]
[1693737538723,59.44461036,19.435,19.42,55.5]
[1693737542126,59.44461036,19.435,19.42,0.5]
[1693737543226,67.47061036,19.435,19.42,0.5]
[1693737544523,59.44461036,19.435,19.42,0.5]
[1693737549833,86.84813939,19.437,19.42,0.5]
[1693737550039,75.0,19.436,19.42,55.5]
[1693737550632,83.026,19.436,19.42,55.5]
[1693737555937,90.5448,19.435,19.42,55.5]
[1693737556240,55.0,19.434,19.42,55.5]
[1693737556631,55.0,19.435,19.42,55.5]
[1693737557719,145.5448,19.435,19.42,55.5]
[1693737559743,145.5448,19.435,19.42,55.0]
[1693737559934,0.5,19.434,19.421,4.44461036]
[1693737590159,0.5,19.434,19.42,59.44461036]
[1693737603167,0.5,19.434,19.42,4.44461036]
[1693737603371,25.66089792,19.434,19.417,4.44461036]
[1693737603673,55.0,19.433,19.417,4.44461036]
[1693737603856,0.5,19.432,19.417,4.44461036]
[1693737604864,0.5,19.432,19.417,59.44461036]
[1693737605070,0.5,19.432,19.418,55.0]
[1693737605262,0.5,19.432,19.419,4.44461036]
[1693737606468,8.528,19.432,19.419,4.44461036]
[1693737606656,55.0,19.431,19.417,4.44461036]
[1693737606962,0.5,19.43,19.417,4.44461036]
[1693737607271,8.528,19.43,19.417,4.44461036]
[1693737608171,0.5,19.43,19.417,4.44461036]
[1693737616769,8.528,19.43,19.417,4.44461036]
[1693737622084,55.0,19.429,19.417,4.44461036]
[1693737622273,0.5,19.428,19.417,4.44461036]
[1693737622478,0.5,19.428,19.417,20.0]
[1693737622677,0.5,19.428,19.418,4.44461036]
[1693737623395,28.529,19.428,19.415,4.44461036]
[1693737623695,28.529,19.428,19.414,55.0]
[1693737623696,0.5,19.426,19.414,55.0]
[1693737623878,20.5,19.426,19.414,55.0]
[1693737625078,20.5,19.426,19.415,4.44461036]
[1693737625279,20.5,19.426,19.414,55.0]
[1693737626482,20.5,19.426,19.415,4.44461036]
[1693737629391,20.5,19.426,19.414,55.0]
[1693737629574,20.5,19.426,19.415,4.44461036]
[1693737630480,20.5,19.426,19.414,55.0]
[1693737630892,28.53,19.426,19.414,55.0]
[1693737633695,28.53,19.426,19.411,42.04018546]
[1693737633884,28.53,19.426,19.412,59.44461036]
[1693737634083,28.53,19.426,19.412,4.44461036]
[1693737647096,28.53,19.426,19.413,4.44461036]
[1693737647298,28.53,19.426,19.412,4.44461036]
[1693737654120,121.6868,19.426,19.412,4.44461036]
[1693737661923,55.0,19.425,19.411,55.0]
[1693737662226,0.5,19.422,19.411,55.0]
[1693737662818,0.5,19.422,19.412,4.44461036]
[1693737668432,0.5,19.423,19.412,4.44461036]
[1693737672919,8.531,19.423,19.412,4.44461036]
[1693737673127,8.531,19.423,19.408,4.44461036]
[1693737673328,8.531,19.423,19.408,59.44461036]
[1693737676329,8.531,19.423,19.409,4.44461036]
[1693737676736,8.531,19.423,19.409,59.44461036]
[1693737677133,8.531,19.423,19.409,4.44461036]
[1693737677731,55.0,19.422,19.409,4.44461036]
[1693737677931,8.532,19.421,19.409,4.44461036]
[1693737685046,0.5,19.421,19.409,4.44461036]
[1693737691359,0.5,19.421,19.4,20.0]
[1693737691545,0.5,19.421,19.401,4.44461036]
[1693737692549,0.5,19.421,19.401,59.44461036]
[1693737692853,0.5,19.421,19.403,4.44461036]
[1693737693153,0.5,19.421,19.403,59.44461036]
[1693737693354,0.5,19.421,19.405,4.44461036]
[1693737693541,8.532,19.421,19.405,59.44461036]
[1693737693743,0.5,19.419,19.407,4.44461036]
[1693737695165,8.032,19.421,19.407,4.44461036]
[1693737695459,0.5,19.419,19.407,4.44461036]
[1693737776435,0.5,19.422,19.407,59.44461036]
[1693737776637,0.5,19.425,19.407,59.44461036]
[1693737776933,0.5,19.425,19.407,85.20556511]
[1693737794753,0.5,19.425,19.407,59.44461036]
[1693737794954,8.53,19.425,19.407,59.44461036]
[1693737795363,55.0,19.424,19.407,59.44461036]
[1693737795568,0.5,19.423,19.407,59.44461036]
[1693737797166,55.5,19.424,19.407,59.44461036]
[1693737797368,0.5,19.424,19.407,59.44461036]
[1693737800371,0.5,19.424,19.407,4.44461036]
[1693737800372,17.13320293,19.423,19.407,4.44461036]
[1693737800551,8.033,19.42,19.407,4.44461036]
[1693737800756,0.5,19.419,19.406,4.44461036]
[1693737802460,0.5,19.419,19.406,59.44461036]
[1693737802655,55.5,19.42,19.407,20.0]
[1693737802860,55.5,19.42,19.408,4.44461036]
[1693737819178,0.5,19.42,19.408,4.44461036]
[1693737819382,55.5,19.42,19.408,4.44461036]
[1693737842099,97.2866,19.419,19.408,4.44461036]
[1693737842302,0.5,19.418,19.408,4.44461036]
[1693737843090,0.5,19.419,19.408,4.44461036]
[1693737843289,94.9137,19.419,19.408,4.44461036]
[1693737843592,0.5,19.419,19.408,4.44461036]
[1693737855921,0.5,19.423,19.408,59.44461036]
[1693737857225,55.5,19.423,19.408,59.44461036]
[1693737857724,148.0242,19.423,19.408,59.44461036]
[1693737866638,148.0242,19.423,19.409,4.44461036]
[1693737866839,148.0242,19.423,19.409,59.44461036]
[1693737867333,148.0242,19.423,19.409,4.44461036]
[1693737867734,93.0242,19.423,19.409,4.44461036]
[1693737896757,93.0242,19.423,19.375,988.5]
[1693737896758,55.0,19.422,19.408,4.44461036]
[1693737896948,55.0,19.422,19.406,20.0]
[1693737896949,8.033,19.418,19.404,20.0]
[1693737897147,0.5,19.417,19.405,4.44461036]
[1693737897446,55.5,19.417,19.405,4.44461036]
[1693737897653,55.5,19.417,19.402,4.44461036]
[1693737897857,96.6216,19.416,19.402,4.44461036]
[1693737898047,0.5,19.415,19.402,4.44461036]
[1693737899459,0.5,19.415,19.402,59.44461036]
[1693737899654,0.5,19.415,19.402,4.44461036]
[1693737899858,8.035,19.414,19.397,4.44461036]
[1693737900060,0.5,19.413,19.392,4.44461036]
[1693737900266,63.536,19.413,19.392,4.44461036]
[1693737900556,63.536,19.413,19.389,58.53253753]
[1693737900557,63.536,19.413,19.39,4.44461036]
[1693737901262,63.536,19.413,19.39,24.44461036]
[1693737901764,98.3796,19.412,19.39,24.44461036]
[1693737901963,55.5,19.411,19.39,24.44461036]
[1693737902353,98.3796,19.41,19.39,24.44461036]
[1693737902552,0.5,19.409,19.391,55.0]
[1693737902755,0.5,19.409,19.392,24.44461036]
[1693737902952,0.5,19.409,19.393,55.0]
[1693737903145,0.5,19.409,19.394,24.44461036]
[1693737903345,0.5,19.409,19.395,55.0]
[1693737903563,0.5,19.409,19.396,4.44461036]
[1693737903762,0.5,19.409,19.396,24.44461036]
[1693737905356,0.5,19.413,19.396,24.44461036]
[1693737905558,55.5,19.413,19.396,24.44461036]
[1693737906762,63.535,19.413,19.396,24.44461036]
[1693737912270,80.66820293,19.413,19.396,24.44461036]
[1693737913362,90.23074293,19.413,19.396,24.44461036]
[1693737922579,130.89053674,19.413,19.396,24.44461036]
[1693737931071,10.06254,19.413,19.396,24.44461036]
[1693737931281,10.06254,19.413,19.397,55.0]
[1693737931478,10.06254,19.413,19.398,4.44461036]
[1693737932984,55.0,19.412,19.398,4.44461036]
[1693737933292,0.5,19.411,19.398,4.44461036]
[1693737933475,90.5439,19.411,19.398,4.44461036]
[1693737934695,0.5,19.411,19.398,4.44461036]
[1693737940888,0.5,19.412,19.398,4.44461036]
[1693737943592,0.5,19.415,19.398,4.44461036]
[1693737944790,0.5,19.416,19.398,4.44461036]
[1693737944995,20.5,19.416,19.398,4.44461036]
[1693737958105,37.63320293,19.416,19.398,4.44461036]
[1693737958603,45.66720293,19.416,19.398,4.44461036]
[1693737959708,45.66720293,19.416,19.398,59.44461036]
[1693737962115,37.63320293,19.416,19.398,59.44461036]
[1693737969815,20.5,19.416,19.398,59.44461036]
[1693737976410,0.5,19.416,19.398,59.44461036]
[1693737976614,0.5,19.419,19.399,20.0]
[1693737976816,0.5,19.421,19.4,59.44461036]
[1693737977015,0.5,19.421,19.4,85.20556511]
[1693737977215,0.5,19.421,19.401,20.0]
[1693737977417,0.5,19.421,19.402,59.44461036]
[1693737977611,0.5,19.421,19.403,20.0]
[1693737977927,0.5,19.421,19.404,59.44461036]
[1693737978116,0.5,19.421,19.405,20.0]
[1693737978311,0.5,19.421,19.406,59.44461036]
[1693737978717,0.5,19.421,19.407,20.0]
[1693737978915,0.5,19.421,19.408,59.44461036]
[1693737979210,20.5,19.426,19.408,59.44461036]
[1693737979522,37.63320293,19.426,19.408,59.44461036]
[1693737985126,37.63320293,19.426,19.408,4.44461036]
[1693737985514,37.63320293,19.426,19.402,4.44461036]
[1693737986215,37.63320293,19.426,19.402,45.9538887]
[1693737986418,37.63320293,19.426,19.404,4.44461036]
[1693737992918,37.63320293,19.426,19.403,4.44461036]
[1693737994115,37.63320293,19.426,19.403,59.44461036]
[1693737994314,37.63320293,19.426,19.405,4.44461036]
[1693737994525,37.63320293,19.426,19.405,59.44461036]
[1693737994728,37.63320293,19.426,19.407,4.44461036]
[1693737994933,37.63320293,19.426,19.407,59.44461036]
[1693738006836,37.63320293,19.426,19.407,100.06316705]
[1693738011136,37.63320293,19.426,19.407,115.56419797]
[1693738026339,93.92208742,19.426,19.407,115.56419797]
[1693738028744,99.89907671,19.425,19.407,115.56419797]
[1693738028946,8.032,19.423,19.407,115.56419797]
[1693738029145,17.63106887,19.422,19.407,115.56419797]
[1693738051366,0.5,19.422,19.407,115.56419797]
[1693738051667,0.5,19.424,19.407,115.56419797]
[1693738058471,0.5,19.425,19.407,115.56419797]
[1693738061466,0.5,19.426,19.407,115.56419797]
[1693738062068,55.5,19.427,19.407,115.56419797]
[1693738062265,20.0,19.426,19.407,115.56419797]
[1693738062464,0.5,19.425,19.407,115.56419797]
[1693738091600,0.5,19.425,19.408,32.138]
[1693738091801,0.5,19.425,19.409,59.44461036]
[1693738094712,0.5,19.426,19.409,59.44461036]
[1693738112920,20.5,19.426,19.409,59.44461036]
[1693738113118,0.5,19.426,19.409,59.44461036]
[1693738113417,0.5,19.429,19.41,75.0]
[1693738113616,0.5,19.429,19.411,4.44461036]
[1693738113922,0.5,19.429,19.411,30.20556511]
[1693738114108,0.5,19.429,19.412,75.0]
[1693738114308,400.1,19.43,19.413,4.44461036]
[1693738116521,0.5,19.436,19.413,4.44461036]
[1693738116716,17.13106887,19.435,19.413,4.44461036]
[1693738116916,0.5,19.434,19.413,4.44461036]
[1693738117413,0.5,19.434,19.414,30.8312]
[1693738117615,0.5,19.434,19.415,79.44461036]
[1693738129230,0.5,19.434,19.415,59.44461036]
[1693738129433,0.5,19.434,19.415,74.56201509]
[1693738129620,0.5,19.434,19.416,20.0]
[1693738129821,0.5,19.434,19.417,59.44461036]
[1693738146347,0.5,19.434,19.417,100.41680396]
[1693738185665,0.5,19.437,19.417,100.41680396]
[1693738185870,20.5,19.437,19.417,100.41680396]
[1693738194689,0.5,19.435,19.417,100.41680396]
[1693738206308,20.0,19.437,19.417,100.41680396]
[1693738206309,0.5,19.436,19.417,100.41680396]
[1693738206519,0.5,19.436,19.417,126.17775871]
[1693738207401,0.5,19.436,19.417,252.35551671]
[1693738208694,0.5,19.436,19.417,126.17775871]
[1693738227636,0.5,19.44,19.418,45.76095475]
[1693738227842,0.5,19.443,19.419,59.44461036]
[1693738228035,0.5,19.443,19.42,20.0]
[1693738228241,17.63106887,19.443,19.421,59.44461036]
[1693738228566,17.13106887,19.443,19.422,20.0]
[1693738228731,17.13106887,19.443,19.423,59.44461036]
[1693738228732,0.49928598,19.442,19.423,59.44461036]
[1693738228944,96.55078414,19.444,19.424,20.0]
[1693738229240,0.5,19.443,19.425,59.44461036]
[1693738229423,0.5,19.443,19.427,4.44461036]
[1693738229619,96.55078414,19.444,19.427,59.44461036]
[1693738229822,0.5,19.443,19.427,59.44461036]
[1693738230738,96.55078414,19.444,19.427,59.44461036]
[1693738231341,104.57378414,19.444,19.427,59.44461036]
[1693738231543,0.5,19.443,19.427,59.44461036]
[1693738232428,8.523,19.443,19.427,59.44461036]
[1693738232631,96.55078414,19.444,19.427,59.44461036]
[1693738232832,0.5,19.443,19.427,59.44461036]
[1693738233543,96.55078414,19.444,19.427,59.44461036]
[1693738234726,48.335001,19.444,19.427,59.44461036]
[1693738234927,8.022,19.446,19.427,59.44461036]
[1693738235442,0.5,19.445,19.427,59.44461036]
[1693738237431,52.8449602,19.446,19.427,59.44461036]
[1693738237934,0.5,19.445,19.427,59.44461036]
[1693738243850,0.5,19.445,19.427,74.76747338]
[1693738244027,0.5,19.445,19.427,115.69847234]
[1693738244233,17.13106887,19.446,19.427,115.69847234]
[1693738245647,0.49684904,19.445,19.427,115.69847234]
[1693738246452,0.5,19.445,19.427,115.69847234]
[1693738247452,20.5,19.449,19.427,115.69847234]
[1693738247652,17.13106887,19.448,19.427,115.69847234]
[1693738247840,0.5,19.446,19.427,115.69847234]
[1693738257746,0.5,19.447,19.427,115.69847234]
[1693738269851,20.5,19.447,19.427,115.69847234]
[1693738270252,0.5,19.447,19.427,115.69847234]
[1693738270561,0.5,19.448,19.427,115.69847234]
[1693738271249,8.521,19.448,19.427,60.69847234]
[1693738271454,8.022,19.445,19.427,60.69847234]
[1693738271655,25.15306887,19.445,19.427,60.69847234]
[1693738272560,25.15306887,19.445,19.428,55.0]
[1693738272869,25.15306887,19.445,19.429,4.44461036]
[1693738273372,17.13106887,19.445,19.429,4.44461036]
[1693738273765,17.13106887,19.445,19.428,4.44461036]
[1693738274974,17.13106887,19.445,19.428,59.44461036]
[1693738275358,17.13106887,19.445,19.428,4.44461036]
[1693738275562,25.15306887,19.445,19.428,4.44461036]
[1693738275866,33.951,19.44,19.421,4.44461036]
[1693738276071,0.5,19.438,19.421,4.44461036]
[1693738276371,44.89907671,19.437,19.421,4.44461036]
[1693738276664,0.5,19.434,19.421,4.44461036]
[1693738276875,0.5,19.435,19.421,4.44461036]
[1693738277054,0.5,19.435,19.403,4.44461036]
[1693738277253,400.6,19.435,19.41,205.98526]
[1693738277458,400.6,19.435,19.412,4.44461036]
[1693738277659,417.73106887,19.435,19.413,0.3088326]
[1693738279471,417.73106887,19.435,19.413,55.3088326]
[1693738279765,417.23106887,19.435,19.414,24.44461036]
[1693738279966,417.23106887,19.435,19.416,4.44461036]
[1693738280277,0.5,19.434,19.416,4.44461036]
[1693738280576,417.23106887,19.435,19.416,24.44461036]
[1693738280768,417.23106887,19.435,19.418,4.44461036]
[1693738280968,0.5,19.434,19.418,4.44461036]
[1693738283169,17.13106887,19.435,19.418,4.44461036]
[1693738286263,0.5,19.434,19.418,4.44461036]
[1693738286478,17.13106887,19.435,19.418,4.44461036]
[1693738289383,0.5,19.434,19.418,4.44461036]
[1693738291170,17.13106887,19.435,19.418,4.44461036]
[1693738292073,0.5,19.434,19.418,4.44461036]
[1693738292380,17.13106887,19.435,19.418,4.44461036]
[1693738292886,0.5,19.434,19.418,4.44461036]
[1693738293063,17.13106887,19.435,19.418,4.44461036]
[1693738293564,0.5,19.434,19.418,4.44461036]
[1693738293976,17.13106887,19.435,19.418,4.44461036]
[1693738296887,17.13106887,19.435,19.418,19.63462065]
[1693738297083,52.92507671,19.437,19.42,4.44461036]
[1693738297284,20.0,19.436,19.42,4.44461036]
[1693738300073,37.12769532,19.436,19.42,4.44461036]
[1693738300591,45.15369532,19.436,19.42,4.44461036]
[1693738311194,45.15369532,19.436,19.42,45.64749397]
[1693738311393,45.15369532,19.436,19.421,55.0]
[1693738311606,45.15369532,19.436,19.422,4.44461036]
[1693738321931,0.5,19.435,19.422,4.44461036]
[1693738322123,0.5,19.435,19.422,3.94461036]
[1693738324531,45.15369532,19.436,19.422,3.94461036]
[1693738325625,0.55283523,19.435,19.422,3.94461036]
[1693738326128,8.57883523,19.435,19.422,3.94461036]
[1693738326332,120.46241686,19.434,19.417,23.94461036]
[1693738326536,8.029,19.43,19.417,23.94461036]
[1693738327327,9.029,19.429,19.415,3.94461036]
[1693738327520,8.029,19.429,19.415,44.81381735]
[1693738327721,8.028,19.431,19.417,3.94461036]
[1693738327930,17.12741586,19.432,19.417,3.94461036]
[1693738328238,56.0,19.431,19.415,3.94461036]
[1693738328735,56.0,19.431,19.415,58.94461036]
[1693738328927,95.9037,19.43,19.416,20.0]
[1693738329128,95.9037,19.43,19.417,58.94461036]
[1693738332525,95.9037,19.43,19.417,3.94461036]
[1693738332924,0.52147959,19.429,19.416,58.94461036]
[1693738333125,95.9037,19.43,19.417,20.0]
[1693738333329,8.028,19.431,19.418,3.94461036]
[1693738333528,55.0,19.43,19.418,3.94461036]
[1693738333733,154.1882,19.43,19.418,3.94461036]
[1693738339039,1.0,19.429,19.415,3.94461036]
[1693738339229,154.1882,19.43,19.415,58.94461036]
[1693738339430,154.1882,19.43,19.417,3.94461036]
[1693738341240,55.0,19.43,19.417,3.94461036]
[1693738341441,38.12741586,19.429,19.41,3.94461036]
[1693738341642,8.031,19.424,19.406,15.59165808]
[1693738341839,8.031,19.424,19.407,23.94461036]
[1693738343231,8.03,19.425,19.407,23.94461036]
[1693738343431,55.0,19.424,19.407,23.94461036]
[1693738343625,55.0,19.424,19.409,3.94461036]
[1693738346737,63.031,19.424,19.409,3.94461036]
[1693738348847,98.5078,19.423,19.409,3.94461036]
[1693738350346,55.0,19.422,19.409,3.94461036]
[1693738350545,55.0,19.422,19.408,3.94461036]
[1693738350746,55.0,19.422,19.407,3.94461036]
[1693738351149,55.0,19.422,19.404,3.94461036]
[1693738351450,55.0,19.422,19.404,19.3681034]
[1693738351651,55.0,19.422,19.405,55.0]
[1693738351852,55.0,19.422,19.406,3.94461036]
[1693738354860,98.5078,19.423,19.406,3.94461036]
[1693738355354,55.0,19.422,19.406,3.94461036]
[1693738364066,55.0,19.422,19.406,44.58378561]
[1693738364251,55.0,19.422,19.407,75.0]
[1693738364450,55.0,19.422,19.408,3.94461036]
[1693738367961,98.5078,19.423,19.408,3.94461036]
[1693738445923,98.5078,19.423,19.408,78.94461036]
[1693738446127,98.5078,19.423,19.409,55.0]
[1693738446312,98.5078,19.423,19.41,3.94461036]
[1693738461629,98.5078,19.423,19.41,61.29443002]
[1693738461823,98.5078,19.423,19.411,55.0]
[1693738462023,98.5078,19.423,19.412,3.94461036]
[1693738469340,106.5388,19.423,19.412,3.94461036]
[1693738469548,98.5078,19.423,19.411,3.94461036]
[1693738469843,0.77494943,19.422,19.408,3.94461036]
[1693738470037,98.5078,19.423,19.408,3.94461036]
[1693738470242,0.51529082,19.422,19.408,3.94461036]
[1693738470544,106.5388,19.423,19.408,3.94461036]
[1693738470845,98.5078,19.423,19.408,3.94461036]
[1693738471628,98.5078,19.423,19.408,58.94461036]
[1693738483845,0.65615404,19.422,19.408,58.94461036]
[1693738484157,98.5078,19.423,19.408,58.94461036]
[1693738493567,400.1,19.433,19.408,58.94461036]
[1693738493865,94.3038,19.429,19.409,78.53103422]
[1693738494067,94.3038,19.429,19.41,3.94461036]
[1693738494266,94.3038,19.429,19.411,25.76095475]
[1693738494267,0.76165572,19.428,19.411,25.76095475]
[1693738494468,400.1,19.433,19.412,78.94461036]
[1693738494771,1.0,19.432,19.412,78.94461036]
[1693738494983,95.3038,19.432,19.412,78.94461036]
[1693738495159,1.0,19.432,19.412,78.94461036]
[1693738496055,1.0,19.432,19.412,157.88922036]
[1693738505676,1.0,19.432,19.412,173.35289887]
[1693738508076,1.0,19.432,19.412,213.99174481]
[1693738533193,1.0,19.432,19.414,3.94461036]
[1693738533397,1.0,19.432,19.414,78.94461036]
[1693738566725,400.1,19.433,19.414,78.94461036]
[1693738567014,1.0,19.432,19.414,78.94461036]
[1693738573808,1.0,19.432,19.414,104.70556511]
[1693738575922,1.0,19.432,19.414,78.94461036]
[1693738627696,1.0,19.432,19.414,104.70556511]
[1693738631295,1.0,19.432,19.414,84.70556511]
[1693738631795,1.0,19.432,19.415,20.0]
[1693738631988,1.0,19.432,19.416,58.94461036]
[1693738632189,1.0,19.432,19.417,20.0]
[1693738632493,21.0,19.438,19.418,58.94461036]
[1693738633198,38.12775377,19.438,19.418,58.94461036]
[1693738637787,17.12775377,19.437,19.418,58.94461036]
[1693738638102,21.0,19.436,19.418,58.94461036]
[1693738638405,38.12775377,19.436,19.418,58.94461036]
[1693738641795,38.12775377,19.436,19.418,3.94461036]
[1693738641987,38.12775377,19.436,19.417,3.94461036]
[1693738642188,38.12775377,19.436,19.414,3.94461036]
[1693738643201,38.12775377,19.436,19.414,58.94461036]
[1693738643390,38.12775377,19.436,19.416,3.94461036]
[1693738643592,38.12775377,19.436,19.416,58.94461036]
[1693738643790,38.12775377,19.436,19.418,3.94461036]
[1693738643990,38.12775377,19.436,19.418,58.94461036]
[1693738655814,38.12775377,19.436,19.418,99.18778397]
[1693738657215,38.12775377,19.436,19.418,114.65146248]
[1693738664220,21.0,19.436,19.418,114.65146248]
[1693738664523,1.0,19.436,19.418,114.65146248]
[1693738672615,1.0,19.434,19.418,114.65146248]
[1693738679323,1.0,19.434,19.418,113.15146248]
[1693738690718,2.5,19.435,19.418,113.15146248]
[1693738703139,19.62775377,19.435,19.418,113.15146248]
[1693738744159,17.12775377,19.434,19.418,113.15146248]
[1693738744460,2.5,19.433,19.418,113.15146248]
[1693738744667,2.5,19.433,19.418,58.15146248]
[1693738745864,2.5,19.433,19.42,2.44461036]
[1693738747871,19.62775377,19.433,19.42,2.44461036]
[1693738751667,2.5,19.433,19.42,2.44461036]
[1693738751868,19.62775377,19.436,19.42,2.44461036]
[1693738755571,67.81035782,19.436,19.42,2.44461036]
[1693738763279,75.83635782,19.436,19.42,2.44461036]
[1693738765480,67.81035782,19.436,19.42,2.44461036]
[1693738781096,55.0,19.435,19.42,2.44461036]
[1693738781291,19.62775377,19.434,19.42,2.44461036]
[1693738781588,118.83365377,19.434,19.42,2.44461036]
[1693738803302,101.7059,19.434,19.42,2.44461036]
[1693738810607,118.83365377,19.434,19.42,2.44461036]
[1693738812906,17.12775377,19.433,19.42,2.44461036]
[1693738813102,2.5,19.432,19.42,2.44461036]
[1693738817405,2.5,19.432,19.416,22.44461036]
[1693738817607,2.5,19.432,19.417,55.0]
[1693738817806,2.5,19.432,19.418,2.44461036]
[1693738818521,19.62775377,19.432,19.418,2.44461036]
[1693738833020,2.5,19.432,19.418,2.44461036]
[1693738833233,2.5,19.433,19.418,2.44461036]
[1693738845040,2.5,19.433,19.418,1.44461036]
[1693738847843,2.5,19.433,19.418,42.58216831]
[1693738848043,2.5,19.433,19.419,55.0]
[1693738848254,2.5,19.433,19.42,1.44461036]
[1693738848545,3.5,19.434,19.42,1.44461036]
[1693738848746,3.5,19.431,19.42,1.44461036]
[1693738859647,3.5,19.436,19.42,1.44461036]
[1693738859849,20.0,19.436,19.42,1.44461036]
[1693738860041,3.5,19.435,19.42,1.44461036]
[1693738861141,3.5,19.436,19.42,1.44461036]
[1693738967043,3.5,19.436,19.419,53.94461036]
[1693738980751,3.5,19.436,19.418,95.37487126]
[1693738981055,68.80371326,19.436,19.418,40.37487126]
[1693738981253,68.80371326,19.436,19.417,15.81298299]
[1693738981254,17.12110921,19.435,19.417,15.81298299]
[1693738981556,4.94461036,19.434,19.417,15.81298299]
[1693738982548,4.94461036,19.434,19.418,55.0]
[1693738994267,4.94461036,19.434,19.418,95.44902162]
[1693738994963,4.94461036,19.434,19.418,55.0]
[1693738997160,4.94461036,19.434,19.417,15.81298299]
[1693738997455,4.94461036,19.434,19.393,475.11601988]
[1693738997456,8.03,19.427,19.395,26.89186367]
[1693738997662,4.94461036,19.426,19.402,25.74922289]
[1693738997857,24.94461036,19.426,19.403,20.0]
[1693738998766,24.94461036,19.426,19.404,55.0]
[1693738998948,24.94461036,19.426,19.405,20.0]
[1693738999148,24.94461036,19.426,19.406,55.0]
[1693738999354,24.94461036,19.426,19.407,20.0]
[1693738999556,24.94461036,19.426,19.408,55.0]
[1693739011273,24.94461036,19.426,19.407,75.0]
[1693739011467,24.94461036,19.426,19.407,20.0]
[1693739011773,24.94461036,19.426,19.405,20.0]
[1693739011961,24.94461036,19.426,19.406,40.923235]
[1693739012158,24.94461036,19.426,19.407,20.0]
[1693739012571,32.97461036,19.426,19.408,55.0]
[1693739017777,73.98439911,19.426,19.408,55.0]
[1693739027880,73.98439911,19.426,19.408,95.69654816]
[1693739037194,65.95439911,19.426,19.408,95.69654816]
[1693739042277,24.94461036,19.426,19.408,95.69654816]
[1693739046077,32.97461036,19.426,19.408,95.69654816]
[1693739046282,50.09571957,19.426,19.408,95.69654816]
[1693739046482,42.06571957,19.426,19.408,95.69654816]
[1693739057696,50.09571957,19.426,19.408,95.69654816]